bitfinex/quotes_ETHUSD_20251214
["timestamp","ask_amount","ask_price","bid_price","bid_amount"]
[1765720021066,5.63477949,3090.6,3090.5,0.513]
[1765720025096,5.63477949,3090.6,3090.5,0.002]
[1765720025299,6.2557,3090.6,3090.5,0.002]
[1765720030472,5.7643503,3090.6,3090.5,0.002]
[1765720030787,5.63477949,3090.6,3090.5,0.002]
[1765720031288,5.63477949,3090.6,3089.6,0.1332]
[1765720031289,0.4628,3090.1,3089.6,0.002]
[1765720031491,0.6603,3089.7,3089.6,0.002]
[1765720031710,4.19781159,3089.7,3089.6,0.002]
[1765720031874,4.69571159,3089.7,3089.6,0.002]
[1765720032786,4.39476018,3089.7,3089.6,0.002]
[1765720032991,5.45852676,3089.7,3089.6,0.002]
[1765720034198,6.03900205,3089.7,3089.6,0.002]
[1765720040120,5.45852676,3089.7,3089.6,0.002]
[1765720040283,4.39476018,3089.7,3089.6,0.002]
[1765720040477,4.43521718,3089.7,3089.6,0.002]
[1765720041096,4.39476018,3089.7,3089.6,0.002]
[1765720041290,5.27485074,3089.7,3089.6,0.002]
[1765720041499,6.13965534,3089.7,3089.6,0.002]
[1765720052292,6.14096438,3089.7,3089.6,0.002]
[1765720057833,4.40228909,3089.7,3089.6,0.1332]
[1765720058145,5.33228909,3089.7,3089.6,0.002]
[1765720058300,4.90434609,3089.7,3089.6,0.002]
[1765720059426,4.90491381,3089.7,3089.6,0.002]
[1765720060122,5.37331381,3089.7,3089.6,0.002]
[1765720060627,4.90491381,3089.7,3089.6,0.002]
[1765720061702,4.86445681,3089.7,3089.6,0.002]
[1765720062104,4.40285681,3089.7,3089.6,0.1332]
[1765720062304,3.53805221,3089.7,3089.6,0.2644]
[1765720062602,3.53805221,3089.7,3089.6,0.1332]
[1765720062797,3.53805221,3089.7,3089.6,0.2644]
[1765720064721,3.53805221,3089.7,3089.6,0.1332]
[1765720066033,3.53805221,3089.7,3089.6,0.2644]
[1765720067741,3.53805221,3089.7,3089.6,0.1332]
[1765720067939,4.21550257,3089.7,3089.6,0.1332]
[1765720069213,4.67710257,3089.7,3089.6,0.002]
[1765720069626,4.21550257,3089.7,3089.6,0.1332]
[1765720073917,3.53805221,3089.7,3089.6,0.1332]
[1765720074224,3.53805221,3089.7,3089.6,0.2644]
[1765720074944,3.53805221,3089.7,3089.6,0.1332]
[1765720078631,3.53805221,3089.7,3089.6,0.2644]
[1765720081575,0.30149203,3089.7,3089.6,0.2644]
[1765720081728,0.001,3090.0,3089.6,0.2644]
[1765720082058,0.001,3090.0,3089.9,0.1312]
[1765720082657,0.001,3090.0,3089.9,0.2624]
[1765720083430,0.001,3090.0,3089.9,0.1312]
[1765720084026,1.95640944,3090.0,3089.6,0.002]
[1765720084324,3.70596018,3089.7,3089.6,0.002]
[1765720084551,4.04805703,3089.7,3089.6,0.514]
[1765720084864,4.50420003,3089.7,3089.6,0.002]
[1765720085023,4.00760003,3089.7,3089.6,0.002]
[1765720085226,3.53820003,3089.7,3089.6,0.002]
[1765720086173,3.53820003,3089.7,3089.6,0.1332]
[1765720086461,4.70427536,3089.7,3089.6,0.002]
[1765720086826,5.20087536,3089.7,3089.6,0.002]
[1765720087830,4.70427536,3089.7,3089.6,0.002]
[1765720090357,4.00760003,3089.7,3089.6,0.002]
[1765720090662,3.53820003,3089.7,3089.6,0.1332]
[1765720096466,0.001,3090.0,3089.6,0.2644]
[1765720096651,0.30198261,3089.9,3089.7,0.1312]
[1765720096849,3.23725209,3090.0,3089.9,0.1312]
[1765720097053,3.53923485,3090.0,3089.9,0.1312]
[1765720097976,3.53923485,3090.0,3089.6,0.002]
[1765720097977,7.78194001,3090.0,3089.6,0.002]
[1765720098156,3.70665209,3090.0,3089.9,0.512]
[1765720098352,4.28311105,3090.0,3089.9,0.6432]
[1765720098560,3.53918179,3090.0,3089.9,0.6432]
[1765720101383,3.53918179,3090.0,3089.9,0.512]
[1765720101688,4.00858179,3090.0,3089.9,0.512]
[1765720102683,3.53918179,3090.0,3089.9,0.6432]
[1765720106401,3.53918179,3090.0,3089.9,0.6452]
[1765720108854,3.53918179,3090.0,3089.9,0.7764]
[1765720110287,3.53918179,3090.0,3089.9,0.6452]
[1765720113588,4.02278179,3090.0,3089.9,0.514]
[1765720114069,3.53918179,3090.0,3089.9,0.514]
[1765720115286,3.53918179,3090.0,3089.9,0.6452]
[1765720115460,0.001,3090.0,3089.9,0.7764]
[1765720116565,0.001,3090.0,3089.9,4.41825469]
[1765720116761,0.001,3090.0,3089.9,4.99872998]
[1765720117066,0.001,3090.0,3089.9,35.30162082]
[1765720117594,0.001,3090.0,3089.9,4.86752998]
[1765720117802,0.001,3090.0,3089.9,34.99872998]
[1765720118291,0.001,3090.0,3089.9,0.98797929]
[1765720118462,0.4846,3090.0,3089.9,0.002]
[1765720118657,0.7871256,3090.0,3089.9,0.002]
[1765720118860,1.2527256,3090.0,3089.9,0.002]
[1765720119088,1.2527256,3090.0,3089.6,0.002]
[1765720119261,0.6768,3089.7,3089.6,0.002]
[1765720119462,0.9793256,3089.7,3089.6,0.002]
[1765720119684,4.68148578,3089.7,3089.6,0.002]
[1765720119879,5.47732438,3089.7,3089.6,0.002]
[1765720120490,4.81852438,3089.7,3089.6,0.002]
[1765720122376,5.28412438,3089.7,3089.6,0.002]
[1765720127377,5.32458138,3089.7,3089.6,0.002]
[1765720127587,5.28412438,3089.7,3089.6,0.002]
[1765720127795,4.81852438,3089.7,3089.6,0.002]
[1765720128113,5.28412438,3089.7,3089.6,0.002]
[1765720128893,5.32458138,3089.7,3089.6,0.002]
[1765720130904,5.28412438,3089.7,3089.6,0.002]
[1765720134905,5.32458138,3089.7,3089.6,0.002]
[1765720135101,5.32436149,3089.7,3089.6,0.002]
[1765720137683,5.28390449,3089.7,3089.6,0.002]
[1765720141683,5.32436149,3089.7,3089.6,0.002]
[1765720141898,5.28390449,3089.7,3089.6,0.002]
[1765720142380,5.32436149,3089.7,3089.6,0.002]
[1765720142710,5.28390449,3089.7,3089.6,0.002]
[1765720143812,5.32436149,3089.7,3089.6,0.002]
[1765720144489,4.33470449,3089.7,3089.6,0.002]
[1765720144987,3.23646344,3089.8,3089.6,0.2684]
[1765720145186,3.23646344,3089.8,3089.7,0.1332]
[1765720145388,3.23646344,3089.8,3089.7,0.2664]
[1765720146112,0.001,3089.9,3089.7,0.2664]
[1765720146279,0.001,3089.9,3089.6,0.002]
[1765720146280,0.001,3089.9,3089.8,0.2664]
[1765720148585,0.001,3089.9,3089.8,0.7784]
[1765720149697,0.001,3089.9,3089.8,0.6452]
[1765720150613,0.001,3089.9,3089.8,0.7784]
[1765720152695,0.001,3089.9,3089.8,0.6452]
[1765720152895,0.001,3089.9,3089.8,0.7784]
[1765720154916,0.001,3090.0,3089.8,0.7784]
[1765720155123,0.001,3090.0,3089.9,0.2664]
[1765720155890,0.001,3090.0,3089.9,0.1332]
[1765720156097,0.001,3090.0,3089.9,4.08322598]
[1765720156291,0.001,3090.0,3089.9,34.35552998]
[1765720156518,0.001,3090.0,3089.9,4.48872998]
[1765720158098,0.001,3090.0,3089.9,34.48872998]
[1765720162802,0.001,3090.0,3089.9,11.61172998]
[1765720163436,0.001,3090.0,3089.9,34.48872998]
[1765720167237,0.001,3090.0,3089.9,38.31872998]
[1765720170837,0.001,3090.0,3089.9,38.32072998]
[1765720176441,0.001,3090.9,3090.5,0.405504]
[1765720176615,0.001,3090.9,3090.8,30.538704]
[1765720176819,0.001,3090.9,3090.8,31.11917929]
[1765720177018,0.001,3090.9,3090.8,34.48778759]
[1765720177938,0.001,3090.9,3090.8,34.35458759]
[1765720178142,0.001,3090.9,3090.8,34.48778759]
[1765720181943,0.001,3090.9,3090.8,38.31678759]
[1765720188324,0.001,3090.9,3090.8,48.31678759]
[1765720188526,0.001,3090.9,3090.8,38.31678759]
[1765720193450,0.001,3090.9,3090.8,48.31678759]
[1765720193649,0.001,3090.9,3090.8,38.31678759]
[1765720194035,0.001,3090.9,3090.8,38.18358759]
[1765720195552,0.001,3090.9,3090.8,38.05038759]
[1765720196069,0.001,3090.9,3090.8,38.18358759]
[1765720197841,0.001,3090.9,3090.8,38.31678759]
[1765720199457,0.001,3090.9,3090.8,48.05038759]
[1765720199662,0.001,3090.9,3090.8,38.05038759]
[1765720199862,0.001,3090.9,3090.8,27.78188359]
[1765720199863,1.1139,3090.9,3090.8,27.78188359]
[1765720200166,0.4674,3090.9,3090.8,28.18738759]
[1765720200343,0.001,3090.9,3090.8,28.32058759]
[1765720200663,0.001,3090.9,3090.8,38.69458759]
[1765720201140,0.001,3090.9,3090.8,32.85758759]
[1765720201339,0.001,3090.9,3090.8,32.99078759]
[1765720201541,0.001,3090.9,3090.8,38.82778759]
[1765720202155,0.001,3090.9,3090.8,38.95722004]
[1765720204672,1e-08,3091.2,3091.1,30.671904]
[1765720204873,1e-08,3091.2,3091.1,31.25237929]
[1765720205178,1e-08,3091.2,3091.1,35.21457929]
[1765720205347,1e-08,3091.2,3091.1,35.34400001]
[1765720206143,1e-08,3091.2,3091.1,38.57909431]
[1765720209484,1e-08,3091.2,3091.1,8.57909431]
[1765720209655,1e-08,3091.2,3091.1,38.57909431]
[1765720211578,0.4602,3092.2,3091.4,4.23350399]
[1765720211891,0.4602,3092.2,3091.4,35.55446737]
[1765720212092,0.4602,3092.2,3091.4,35.68766737]
[1765720212788,0.4602,3092.2,3091.4,38.92244772]
[1765720213610,0.4602,3092.2,3091.4,8.92244772]
[1765720213898,0.4592,3092.1,3091.4,38.92244772]
[1765720214592,0.4592,3092.1,3091.4,8.92244772]
[1765720214798,0.4592,3092.1,3091.4,38.92244772]
[1765720216101,0.4592,3092.0,3091.4,38.92244772]
[1765720217695,0.4592,3092.0,3091.4,8.92244772]
[1765720217897,0.4592,3092.0,3091.4,38.92244772]
[1765720219702,0.001,3092.2,3091.4,38.92244772]
[1765720220201,0.4602,3092.2,3091.4,38.92244772]
[1765720220394,0.4592,3092.1,3091.4,38.92244772]
[1765720220801,0.4592,3092.1,3091.4,39.38264772]
[1765720222878,0.4592,3092.1,3091.4,39.24944772]
[1765720223201,0.4592,3092.1,3091.4,39.38264772]
[1765720223704,0.4592,3092.0,3091.4,39.38264772]
[1765720224784,0.4592,3091.8,3091.4,39.24944772]
[1765720226139,0.1873,3091.9,3091.4,39.38264772]
[1765720229514,0.001,3092.2,3091.4,39.38264772]
[1765720229515,0.4731,3092.2,3091.4,39.38264772]
[1765720229809,0.4721,3092.1,3091.4,39.38264772]
[1765720230310,0.4721,3092.0,3091.4,39.38264772]
[1765720230615,0.4731,3092.2,3091.4,39.38264772]
[1765720230805,0.4721,3092.0,3091.4,39.38264772]
[1765720232516,0.001,3092.2,3091.4,39.38264772]
[1765720232718,0.001,3092.2,3091.4,39.65707433]
[1765720233297,0.001,3092.2,3092.1,30.405504]
[1765720233496,0.001,3092.2,3092.1,35.45717928]
[1765720234020,0.001,3092.2,3092.1,35.92927928]
[1765720234519,0.001,3092.2,3092.1,39.03012733]
[1765720234520,0.9692,3092.2,3092.1,39.03012733]
[1765720236929,0.001,3092.2,3092.1,39.03012733]
[1765720237389,0.4971,3092.2,3092.1,39.03012733]
[1765720238024,0.001,3092.2,3092.1,39.16332733]
[1765720240126,0.001,3092.2,3092.1,9.16332733]
[1765720240311,0.001,3092.2,3092.1,39.16332733]
[1765720242020,0.4971,3092.2,3092.1,34.28662334]
[1765720242215,0.9692,3092.2,3092.1,34.21714805]
[1765720242398,0.9692,3092.2,3092.1,34.79762334]
[1765720242602,0.9692,3092.2,3092.1,34.73102734]
[1765720242802,0.9692,3092.2,3092.1,34.15055205]
[1765720243027,0.9692,3092.2,3092.1,34.73102734]
[1765720244529,0.9692,3092.2,3092.1,27.63502734]
[1765720244701,0.9692,3092.2,3092.1,19.03302734]
[1765720245099,0.9692,3092.2,3092.1,34.73102734]
[1765720245323,0.9692,3092.2,3092.1,31.52002734]
[1765720245521,0.9692,3092.2,3092.1,30.78102734]
[1765720246231,0.9692,3092.2,3092.1,3.81452334]
[1765720246525,0.9692,3092.2,3092.1,4.73102734]
[1765720249015,0.9692,3092.2,3092.1,0.916504]
[1765720249215,0.9692,3092.2,3092.0,3.23411993]
[1765720249216,0.9692,3092.2,3091.9,3.23421224]
[1765720249424,0.4721,3092.1,3091.9,0.58047529]
[1765720249624,0.4721,3092.1,3092.0,0.511]
[1765720250004,0.9682,3092.1,3092.0,0.511]
[1765720250729,0.9682,3092.1,3092.0,4.73113194]
[1765720260046,0.9682,3092.1,3092.0,34.73113194]
[1765720260047,0.9736,3092.1,3092.0,34.73113194]
[1765720260257,0.001,3092.2,3092.1,0.405504]
[1765720260425,0.001,3092.2,3092.1,40.405504]
[1765720260619,0.001,3092.2,3092.1,30.98597929]
[1765720260826,0.001,3092.2,3092.1,31.11917929]
[1765720261850,0.001,3092.2,3092.1,34.35322734]
[1765720262540,0.001,3092.2,3092.1,34.96392734]
[1765720265254,0.001,3092.2,3092.1,34.83072734]
[1765720267270,0.4858,3092.2,3092.1,34.69752734]
[1765720267563,0.001,3092.2,3092.1,34.83072734]
[1765720267930,0.001,3092.2,3092.1,38.65772733]
[1765720268461,0.001,3092.2,3092.1,38.79092733]
[1765720271557,0.001,3092.2,3092.1,38.65772733]
[1765720272363,0.001,3092.2,3092.1,38.79092733]
[1765720272868,0.001,3092.2,3092.1,38.65772733]
[1765720273167,0.001,3092.2,3092.1,38.88721542]
[1765720273963,0.001,3092.2,3092.1,48.88721542]
[1765720274161,0.001,3092.2,3092.1,38.88721542]
[1765720274439,0.001,3092.8,3092.7,0.98597929]
[1765720274646,0.001,3092.8,3092.7,41.63017929]
[1765720274861,0.001,3092.8,3092.7,31.63017929]
[1765720275065,0.001,3093.5,3093.3,0.405504]
[1765720275272,0.001,3093.5,3093.3,30.916504]
[1765720275442,0.4858,3093.4,3093.3,30.916504]
[1765720275644,0.9633,3093.4,3093.3,30.916504]
[1765720277173,0.9633,3093.4,3093.3,34.14929745]
[1765720277873,0.9633,3093.4,3093.1,0.58047529]
[1765720278173,0.4848,3093.2,3093.0,3.82699999]
[1765720278359,0.1725,3093.1,3093.0,7.06010102]
[1765720278562,0.1725,3093.1,3093.0,7.97660502]
[1765720278744,0.1725,3093.1,3093.0,7.57110102]
[1765720278745,0.65,3093.1,3093.0,7.57110102]
[1765720279075,0.65,3093.1,3093.0,3.82699999]
[1765720279273,0.65,3093.1,3093.0,4.33799999]
[1765720279950,0.65,3093.1,3093.0,0.511]
[1765720280879,0.65,3093.1,3093.0,4.3245823]
[1765720281550,0.65,3093.1,3093.0,4.7300863]
[1765720282553,0.65,3093.1,3093.0,34.7300863]
[1765720284976,0.1725,3093.1,3093.0,34.7300863]
[1765720285557,0.65,3093.1,3093.0,34.7300863]
[1765720285757,0.1725,3093.1,3093.0,34.7300863]
[1765720286386,0.1725,3093.1,3093.0,13.9680863]
[1765720286387,0.6431,3093.1,3093.0,13.9680863]
[1765720286556,0.6431,3093.1,3093.0,12.4740863]
[1765720286985,0.6441,3093.1,3093.0,34.7300863]
[1765720287983,0.001,3093.1,3093.0,34.7300863]
[1765720288183,0.001,3093.1,3093.0,19.5150863]
[1765720288184,0.4934,3093.1,3093.0,19.5150863]
[1765720288490,0.964,3093.1,3093.0,19.5150863]
[1765720288688,0.964,3093.1,3093.0,23.34208629]
[1765720289080,0.964,3093.1,3093.0,38.55708629]
[1765720289589,0.964,3093.1,3093.0,31.08508629]
[1765720289785,0.964,3093.1,3093.0,30.73308629]
[1765720289986,0.964,3093.1,3093.0,11.40008629]
[1765720291088,0.964,3093.1,3093.0,38.55708629]
[1765720292187,0.964,3093.1,3093.0,8.55708629]
[1765720293469,0.964,3093.1,3093.0,3.82699999]
[1765720293794,0.964,3093.1,3093.0,0.511]
[1765720293971,4.61682191,3093.1,3092.1,3.23397578]
[1765720294295,4.61682191,3093.1,3091.7,3.33068138]
[1765720294296,0.4706,3093.0,3092.5,0.58047529]
[1765720294484,0.6642,3092.6,3092.5,0.58047529]
[1765720294686,0.6642,3092.6,3092.5,4.15013374]
[1765720294989,1.1348,3092.6,3092.5,4.73060903]
[1765720295699,1.1348,3092.6,3092.5,1.49697929]
[1765720297176,1.1348,3092.6,3092.5,0.58047529]
[1765720297577,1.1348,3092.6,3092.5,1.09147529]
[1765720298904,1.1348,3092.6,3092.5,0.511]
[1765720299070,1.57162826,3092.6,3092.5,0.511]
[1765720302778,1.1348,3092.6,3092.5,0.511]
[1765720304128,1.1348,3092.6,3092.5,0.513]
[1765720311916,0.89139456,3093.1,3092.5,0.513]
[1765720312119,0.4924,3092.6,3092.5,0.513]
[1765720312689,0.963,3092.6,3092.5,0.513]
[1765720317012,0.96111535,3092.6,3092.5,0.513]
[1765720318725,0.49051535,3092.6,3092.5,0.513]
[1765720319328,0.96591535,3092.6,3092.5,0.513]
[1765720321399,0.1845,3092.8,3092.5,0.9697]
[1765720321600,0.6599,3092.8,3092.5,0.9697]
[1765720321801,0.4837,3092.6,3092.5,0.513]
[1765720322628,0.9591,3092.6,3092.5,0.513]
[1765720326530,1.26212653,3092.6,3092.5,0.513]
[1765720327504,0.4837,3092.6,3092.5,0.918504]
[1765720327704,0.9591,3092.6,3092.5,0.918504]
[1765720328715,0.9591,3092.6,3092.5,0.513]
[1765720329208,0.198,3092.9,3092.5,0.9697]
[1765720329408,0.30311777,3092.8,3092.5,0.9697]
[1765720329623,0.30311777,3092.7,3092.5,0.9697]
[1765720329820,0.4754,3092.8,3092.5,0.9697]
[1765720330017,0.4837,3092.6,3092.5,0.918504]
[1765720330417,0.001,3093.1,3092.5,0.918504]
[1765720330418,0.001,3093.1,3092.6,0.405504]
[1765720330733,0.77851888,3093.0,3092.6,0.405504]
[1765720330934,0.30311888,3092.9,3092.6,0.405504]
[1765720331134,0.4837,3092.7,3092.6,0.405504]
[1765720334113,0.4847,3092.7,3092.6,0.405504]
[1765720334938,0.001,3092.7,3092.6,0.862204]
[1765720335142,0.001,3092.7,3092.6,4.09572918]
[1765720335612,0.001,3092.7,3092.6,35.13170447]
[1765720336210,0.001,3092.7,3092.6,38.95870446]
[1765720338038,0.001,3092.7,3092.6,35.13170447]
[1765720338421,0.001,3092.7,3092.6,31.12420447]
[1765720338624,0.001,3092.7,3092.6,33.87870447]
[1765720339743,0.001,3092.7,3092.6,35.13170447]
[1765720339946,0.001,3092.7,3092.6,21.78870447]
[1765720340128,0.001,3092.7,3092.6,21.41970447]
[1765720340745,0.001,3092.7,3092.6,45.13170447]
[1765720341048,0.001,3092.7,3092.6,35.13170447]
[1765720341729,0.001,3092.7,3092.6,35.26108501]
[1765720345733,0.001,3092.7,3092.6,5.26108501]
[1765720345935,0.001,3092.7,3092.6,35.26108501]
[1765720349938,0.001,3092.7,3092.6,45.26108501]
[1765720350145,0.001,3092.7,3092.6,35.26108501]
[1765720350665,0.001,3092.7,3092.6,35.3573731]
[1765720355663,0.001,3092.7,3092.6,39.18437309]
[1765720355863,0.001,3092.7,3092.6,9.18437309]
[1765720356070,0.001,3092.7,3092.6,39.18437309]
[1765720361750,0.001,3092.7,3092.6,35.8683731]
[1765720364059,0.001,3092.7,3092.6,35.4128731]
[1765720364262,0.001,3092.7,3092.6,35.8831731]
[1765720364877,0.001,3092.7,3092.6,35.4128731]
[1765720365076,0.001,3092.7,3092.6,35.8831731]
[1765720369365,0.001,3092.7,3092.6,34.9561731]
[1765720369682,0.001,3092.7,3092.6,35.4260731]
[1765720369982,0.001,3092.7,3092.6,35.8963731]
[1765720370158,0.001,3092.7,3092.6,45.8963731]
[1765720370358,0.001,3092.7,3092.6,35.8963731]
[1765720372180,0.001,3092.7,3092.6,5.8963731]
[1765720372382,0.001,3092.7,3092.6,35.8963731]
[1765720375283,0.001,3092.7,3092.6,5.8963731]
[1765720375486,0.001,3092.7,3092.6,35.8963731]
[1765720377871,0.001,3093.1,3093.0,34.81197928]
[1765720378094,0.001,3093.1,3093.0,35.32297928]
[1765720378465,0.001,3093.1,3093.0,38.55608629]
[1765720379190,0.001,3093.1,3093.0,39.05658629]
[1765720379363,0.001,3093.1,3093.0,39.54588629]
[1765720380569,0.001,3093.1,3093.0,39.05658629]
[1765720381064,0.001,3093.1,3093.0,40.00148629]
[1765720381969,0.001,3093.1,3093.0,40.09777438]
[1765720384995,0.001,3093.1,3093.0,39.64217438]
[1765720385294,0.001,3093.1,3093.0,40.42703433]
[1765720386713,0.001,3093.3,3093.2,4.81097928]
[1765720386873,0.001,3093.3,3093.2,35.30027928]
[1765720387203,0.001,3093.3,3093.2,35.75587928]
[1765720387368,0.001,3093.3,3093.2,35.88521296]
[1765720387900,0.001,3093.3,3093.2,39.11811092]
[1765720389499,0.001,3093.3,3093.2,9.11811092]
[1765720389680,0.001,3093.3,3093.2,39.11811092]
[1765720390498,0.001,3093.3,3093.2,9.11811092]
[1765720390802,0.001,3093.3,3093.2,39.11811092]
[1765720391200,0.001,3093.3,3093.2,38.66251092]
[1765720391499,0.001,3093.3,3093.2,9.12231092]
[1765720391702,0.001,3093.3,3093.2,39.12231092]
[1765720392904,0.001,3093.5,3093.4,34.80897928]
[1765720393101,0.001,3093.5,3093.4,35.78157928]
[1765720393281,0.001,3093.5,3093.4,36.57063923]
[1765720393478,0.001,3093.5,3093.4,36.44187928]
[1765720394804,0.001,3093.5,3093.4,39.67456823]
[1765720395006,0.001,3094.0,3093.5,0.98597929]
[1765720395217,0.001,3094.0,3093.9,0.98597929]
[1765720395513,0.001,3094.0,3093.9,31.49597929]
[1765720395710,0.001,3094.0,3093.9,31.96237929]
[1765720395889,0.001,3094.0,3093.9,32.42497929]
[1765720396579,0.001,3094.0,3093.9,35.65714581]
[1765720398595,0.001,3094.0,3093.9,39.9399458]
[1765720398840,0.001,3094.0,3093.9,39.4801458]
[1765720399012,0.4584,3094.0,3093.9,39.0175458]
[1765720400817,0.001,3094.0,3093.9,39.4801458]
[1765720401390,0.001,3094.0,3093.9,39.9399458]
[1765720404514,0.4674,3094.4,3094.1,0.98597929]
[1765720404714,0.4674,3094.4,3094.3,40.98597929]
[1765720404922,0.4674,3094.4,3094.3,38.54972797]
[1765720405223,0.9248,3094.4,3094.3,39.01712797]
[1765720406216,0.47,3094.4,3094.3,39.01712797]
[1765720406421,0.9231,3094.4,3094.3,39.01712797]
[1765720411245,0.9618,3094.4,3094.3,39.01712797]
[1765720414124,0.461,3094.4,3094.3,39.01712797]
[1765720414330,0.9528,3094.4,3094.3,39.01712797]
[1765720415329,0.461,3094.4,3094.3,39.01712797]
[1765720416228,0.001,3094.4,3094.3,39.01712797]
[1765720417330,0.461,3094.4,3094.3,39.01712797]
[1765720418028,0.461,3094.4,3094.3,9.01712797]
[1765720418211,0.461,3094.4,3094.3,39.01712797]
[1765720418595,0.001,3094.4,3094.3,39.01712797]
[1765720419140,0.001,3094.4,3094.3,39.48302797]
[1765720419340,0.001,3094.4,3094.3,39.01712797]
[1765720419505,0.001,3094.4,3094.3,39.48302797]
[1765720420008,0.461,3094.4,3094.3,35.19512798]
[1765720420333,0.9528,3094.4,3094.3,35.19512798]
[1765720420729,0.001,3094.4,3094.3,35.66102798]
[1765720421133,0.001,3094.4,3094.3,36.12172798]
[1765720424031,0.461,3094.4,3094.3,35.19512798]
[1765720425113,0.461,3094.4,3094.3,5.19512798]
[1765720425438,0.461,3094.4,3094.3,35.19512798]
[1765720426439,0.9528,3094.4,3094.3,35.19512798]
[1765720427335,0.9528,3094.4,3094.3,34.68512798]
[1765720427640,0.9528,3094.4,3094.3,30.30012798]
[1765720428238,0.9528,3094.4,3094.3,35.19512798]
[1765720429714,0.001,3094.4,3094.3,35.66102798]
[1765720430420,0.001,3094.4,3094.3,35.19512798]
[1765720430611,0.461,3094.4,3094.3,35.19512798]
[1765720431033,0.9528,3094.4,3094.3,35.19512798]
[1765720435443,0.9528,3094.4,3094.3,31.92012798]
[1765720436749,0.9528,3094.4,3094.3,30.65112798]
[1765720437624,0.9528,3094.4,3094.3,29.94112798]
[1765720437829,0.9528,3094.4,3094.3,18.42312798]
[1765720440746,0.9528,3094.4,3094.3,15.27212798]
[1765720441447,0.461,3094.4,3094.3,35.19512798]
[1765720441650,0.4773,3094.4,3094.3,35.19512798]
[1765720442353,0.9495,3094.4,3094.3,35.19512798]
[1765720443347,0.9495,3094.4,3094.3,30.03212798]
[1765720443553,0.9495,3094.4,3094.3,14.38212798]
[1765720444617,0.9495,3094.4,3094.3,13.87212798]
[1765720444820,0.9495,3094.4,3094.3,4.68512798]
[1765720445138,0.9495,3094.4,3094.3,4.72772798]
[1765720445720,0.001,3094.4,3094.3,44.72772798]
[1765720445921,0.4773,3094.4,3094.3,34.72772798]
[1765720446153,0.9495,3094.4,3094.3,34.09372798]
[1765720446521,0.001,3094.4,3094.3,34.57702798]
[1765720446735,0.001,3094.4,3094.3,36.64912798]
[1765720447613,0.001,3094.4,3094.3,36.16052798]
[1765720448221,0.001,3094.4,3094.3,36.64912798]
[1765720452853,0.001,3094.4,3094.3,6.64912798]
[1765720453050,0.001,3094.4,3094.3,36.74541607]
[1765720453866,0.001,3094.4,3094.3,6.74541607]
[1765720454152,0.001,3094.4,3094.3,36.74541607]
[1765720455054,0.001,3094.4,3094.3,40.56741606]
[1765720455961,0.001,3094.4,3094.3,10.56741606]
[1765720456260,0.001,3094.4,3094.3,40.56741606]
[1765720462480,0.001,3094.4,3094.3,40.92359267]
[1765720464160,0.001,3094.4,3094.3,40.56741606]
[1765720466394,0.001,3094.4,3094.3,36.74541607]
[1765720467002,0.001,3094.4,3094.3,36.25681607]
[1765720469372,0.001,3094.4,3094.3,36.71771607]
[1765720469978,0.001,3094.4,3094.3,36.25681607]
[1765720470391,0.4989,3094.4,3094.3,35.77351607]
[1765720470892,0.001,3094.4,3094.3,35.77351607]
[1765720471576,0.001,3094.4,3094.3,36.72901607]
[1765720471773,0.001,3094.4,3094.3,37.13060935]
[1765720471973,0.001,3094.4,3094.3,36.66970935]
[1765720475374,0.001,3094.4,3094.3,37.13060935]
[1765720476581,0.001,3094.4,3094.3,36.72901607]
[1765720477076,0.001,3094.4,3094.3,36.26811607]
[1765720477268,0.001,3094.4,3094.3,46.26811607]
[1765720477466,0.001,3094.4,3094.3,36.26811607]
[1765720478411,0.001,3094.4,3094.3,36.66970935]
[1765720481677,0.001,3094.4,3094.3,40.49170934]
[1765720484106,0.001,3094.4,3094.3,40.95260934]
[1765720484273,0.001,3094.4,3094.3,10.95260934]
[1765720484478,0.001,3094.4,3094.3,40.49170934]
[1765720485423,0.4989,3094.4,3094.3,39.48710934]
[1765720485589,0.001,3094.4,3094.3,39.59551606]
[1765720485778,0.001,3094.4,3094.3,40.95260934]
[1765720486129,0.001,3094.4,3094.3,40.49170934]
[1765720488402,0.001,3094.4,3094.3,10.49170934]
[1765720488606,0.001,3094.4,3094.3,40.49170934]
[1765720491806,0.4989,3094.4,3094.3,39.99710934]
[1765720492287,0.001,3094.4,3094.3,40.49170934]
[1765720495114,0.001,3094.4,3094.3,40.95260934]
[1765720496002,0.001,3094.6,3094.5,30.405504]
[1765720496210,0.001,3094.6,3094.5,31.47477929]
[1765720496603,0.001,3094.6,3094.5,31.66667929]
[1765720496918,0.4916,3094.6,3094.5,31.66667929]
[1765720497614,0.4916,3094.6,3094.5,4.89821911]
[1765720497787,0.4916,3094.6,3094.5,34.89821911]
[1765720498507,0.001,3094.6,3094.5,34.89821911]
[1765720500309,0.4916,3094.6,3094.5,34.89821911]
[1765720500720,0.4916,3094.6,3094.5,34.9945072]
[1765720500922,0.001,3094.6,3094.5,34.9945072]
[1765720501590,0.001,3094.6,3094.5,35.4859072]
[1765720502088,0.001,3094.6,3094.5,36.23837958]
[1765720502289,0.001,3094.6,3094.5,35.39610048]
[1765720502689,0.001,3094.6,3094.5,45.39610048]
[1765720502890,0.001,3094.6,3094.5,35.39610048]
[1765720504819,0.001,3094.6,3094.5,34.9945072]
[1765720505196,0.4916,3094.6,3094.5,34.9945072]
[1765720506206,0.001,3094.6,3094.5,34.9945072]
[1765720506419,0.4916,3094.6,3094.5,34.9945072]